bitfinex/quotes_BTCUSD_20220304
["timestamp","ask_amount","ask_price","bid_price","bid_amount"]
[1646386621450,0.0022,41724.0,41722.0,0.02375]
[1646386622450,0.0022,41724.0,41722.0,1.06323884]
[1646386622650,0.0022,41724.0,41722.0,0.94385]
[1646386622853,0.0022,41724.0,41722.0,1.309163]
[1646386623051,0.0022,41724.0,41722.0,1.359163]
[1646386623250,0.0022,41724.0,41722.0,1.3245914]
[1646386623459,0.0043,41727.0,41724.0,1.121163]
[1646386623654,0.0021,41726.0,41724.0,1.76655184]
[1646386623958,0.0022,41731.0,41730.0,0.75585]
[1646386624152,0.0022,41731.0,41730.0,1.58196761]
[1646386624352,0.0022,41731.0,41730.0,1.73194614]
[1646386626501,0.0022,41731.0,41730.0,0.99984614]
[1646386627098,0.0022,41731.0,41730.0,1.73194614]
[1646386627099,0.0122,41731.0,41730.0,1.73194614]
[1646386627498,0.0122,41731.0,41730.0,0.99984614]
[1646386627699,0.0122,41731.0,41730.0,0.5424573]
[1646386627900,0.0122,41731.0,41730.0,0.1771443]
[1646386628350,0.0122,41731.0,41730.0,0.5424573]
[1646386628552,0.0122,41731.0,41730.0,0.1771443]
[1646386628749,0.0122,41731.0,41730.0,0.5424573]
[1646386628948,0.0122,41731.0,41730.0,0.1533943]
[1646386629151,0.0122,41731.0,41730.0,0.46078314]
[1646386629348,0.0122,41731.0,41730.0,0.4625092]
[1646386629848,0.0122,41731.0,41730.0,0.41459801]
[1646386630049,0.0015,41733.0,41730.0,0.10720917]
[1646386630248,0.0015,41733.0,41732.0,0.05748655]
[1646386631048,0.0015,41733.0,41732.0,0.05748311]
[1646386633206,0.0015,41733.0,41730.0,0.00172606]
[1646386634008,0.19732397,41732.0,41730.0,0.00172606]
[1646386634606,0.19732397,41732.0,41725.0,0.1780768]
[1646386634806,0.19732397,41732.0,41725.0,0.1790768]
[1646386635005,0.19732397,41732.0,41725.0,0.001]
[1646386636250,0.24732397,41732.0,41720.0,0.17718436]
[1646386636650,0.23847049,41727.0,41722.0,0.27271902]
[1646386636850,0.18454501,41725.0,41720.0,0.17718436]
[1646386637054,0.05,41727.0,41720.0,0.17718436]
[1646386637251,0.19335524,41730.0,41720.0,0.22718436]
[1646386637852,0.28956429,41726.0,41721.0,0.26876001]
[1646386638052,0.17572273,41728.0,41720.0,0.22718436]
[1646386638753,0.17072273,41728.0,41720.0,0.22718436]
[1646386639153,0.17072273,41728.0,41720.0,0.43272443]
[1646386639354,0.17072273,41728.0,41716.0,0.005]
[1646386640196,0.17072273,41728.0,41717.0,0.365313]
[1646386640395,0.0015,41733.0,41722.0,0.19586274]
[1646386641401,0.0015,41733.0,41729.0,0.18080378]
[1646386642095,0.0015,41733.0,41730.0,0.365313]
[1646386642298,0.0015,41733.0,41729.0,0.18080378]
[1646386644246,0.0015,41733.0,41718.0,0.30738884]
[1646386644646,0.0015,41733.0,41719.0,0.02408]
[1646386644850,0.15897575,41725.0,41718.0,0.30738884]
[1646386645047,0.0015,41733.0,41719.0,0.365313]
[1646386645248,0.0015,41733.0,41723.0,0.16000678]
[1646386646050,0.20762043,41730.0,41725.0,0.27863143]
[1646386646253,0.0015,41733.0,41725.0,0.27863143]
[1646386646850,0.0015,41733.0,41723.0,0.16000678]
[1646386647504,0.16122822,41731.0,41723.0,0.21000678]
[1646386647801,0.16122822,41731.0,41721.0,0.005]
[1646386647802,0.22915583,41730.0,41721.0,0.005]
[1646386648002,0.07236324,41727.0,41721.0,0.005]
[1646386648201,0.07236324,41727.0,41711.0,0.01197]
[1646386648202,0.07236324,41727.0,41713.0,0.35566884]
[1646386648402,0.12036324,41727.0,41713.0,0.04828]
[1646386648802,0.24335178,41716.0,41713.0,0.04828]
[1646386649001,0.26717259,41722.0,41719.0,0.52851314]
[1646386649802,0.21922748,41721.0,41719.0,0.52851314]
[1646386650001,0.20566913,41720.0,41719.0,0.52851314]
[1646386652052,0.20066913,41720.0,41719.0,0.52851314]
[1646386653257,0.054,41726.0,41719.0,0.52851314]
[1646386654155,0.25466445,41725.0,41720.0,0.24341656]
[1646386654512,0.17916977,41723.0,41719.0,0.52851314]
[1646386654712,0.17916977,41723.0,41719.0,0.53001511]
[1646386655713,0.3796954,41723.0,41719.0,0.53001511]
[1646386656913,0.20752563,41723.0,41719.0,0.53001511]
[1646386657914,0.2030583,41720.0,41719.0,0.53001511]
[1646386658117,0.20752563,41723.0,41719.0,0.53001511]
[1646386659154,0.2151229,41720.0,41719.0,0.53001511]
[1646386660157,0.20752563,41723.0,41719.0,0.53001511]
[1646386661156,0.21713242,41722.0,41719.0,0.53001511]
[1646386662206,0.20184241,41721.0,41719.0,0.53001511]
[1646386667858,0.043,41720.0,41719.0,0.53001511]
[1646386669900,0.043,41720.0,41719.0,0.52922111]
[1646386670402,0.07828564,41720.0,41719.0,0.52922111]
[1646386670802,0.42324924,41720.0,41719.0,0.52922111]
[1646386673007,0.10303614,41720.0,41719.0,0.52922111]
[1646386673254,0.41042498,41720.0,41719.0,0.52922111]
[1646386673452,0.73217778,41720.0,41719.0,0.1066294]
[1646386674654,0.73217778,41720.0,41719.0,0.10792695]
[1646386676257,0.72717778,41720.0,41719.0,0.10792695]
[1646386676459,0.41603466,41720.0,41719.0,0.10792695]
[1646386676656,0.51603466,41720.0,41719.0,0.10792695]
[1646386678112,0.82716914,41720.0,41719.0,0.10792695]
[1646386679011,0.72716914,41720.0,41719.0,0.10792695]
[1646386679212,0.155,41725.0,41719.0,0.10792695]
[1646386679213,0.34649466,41721.0,41719.0,0.10792695]
[1646386679414,0.34649466,41723.0,41719.0,0.1066294]
[1646386679612,0.34649466,41724.0,41719.0,0.1066294]
[1646386680311,0.61925783,41724.0,41719.0,0.1066294]
[1646386680517,0.34649466,41724.0,41719.0,0.1066294]
[1646386681169,0.39649466,41724.0,41719.0,0.1066294]
[1646386681378,0.28767238,41721.0,41719.0,0.1066294]
[1646386681869,0.33767238,41721.0,41719.0,0.1066294]
[1646386682572,0.48767238,41721.0,41719.0,0.1066294]
[1646386682770,0.53567238,41721.0,41719.0,0.1066294]
[1646386682970,0.15,41720.0,41719.0,0.1066294]
[1646386683171,0.64419622,41721.0,41719.0,0.1066294]
[1646386683571,0.33567238,41721.0,41719.0,0.1066294]
[1646386685006,0.64419622,41721.0,41719.0,0.1066294]
[1646386685202,0.30852384,41720.0,41719.0,0.1066294]
[1646386685405,0.6550185,41720.0,41719.0,0.1066294]
[1646386688357,0.38613147,41720.0,41719.0,0.1066294]
[1646386689559,0.07760763,41720.0,41719.0,0.1066294]
[1646386691262,0.12760763,41720.0,41719.0,0.1066294]
[1646386692321,0.07760763,41720.0,41719.0,0.1066294]
[1646386692717,2.77782567,41720.0,41719.0,0.1066294]
[1646386693117,2.82582567,41720.0,41719.0,0.1066294]
[1646386697558,2.82582567,41720.0,41706.0,0.01197]
[1646386697559,1.4,41719.0,41706.0,0.01197]
[1646386697859,0.06556978,41707.0,41706.0,0.01197]
[1646386698258,0.048,41710.0,41706.0,0.01197]
[1646386698560,0.34512357,41710.0,41706.0,0.01197]
[1646386698959,0.16775313,41708.0,41706.0,0.01197]
[1646386699157,0.048,41707.0,41706.0,0.01197]
[1646386700407,0.24392673,41707.0,41706.0,0.01197]
[1646386702406,0.24392673,41707.0,41694.0,0.33059348]
[1646386702608,0.59434629,41706.0,41690.0,0.1892]
[1646386702906,0.59434629,41706.0,41689.0,0.30651348]
[1646386702907,0.44512357,41705.0,41689.0,0.30651348]
[1646386703108,0.27580632,41698.0,41693.0,0.22265523]
[1646386703356,0.44512357,41705.0,41699.0,0.25289641]
[1646386703557,0.29712357,41704.0,41699.0,0.25289641]
[1646386703856,0.048,41703.0,41699.0,0.25289641]
[1646386704256,0.27032088,41702.0,41699.0,0.25289641]
[1646386704457,0.16252615,41701.0,41699.0,0.25289641]
[1646386704960,0.048,41700.0,41699.0,0.25289641]
[1646386706158,0.09193521,41700.0,41699.0,0.25289641]
[1646386707208,0.09191649,41700.0,41699.0,0.25289641]
[1646386708209,0.09191649,41700.0,41699.0,0.25266943]
[1646386709110,0.14191649,41700.0,41699.0,0.25266943]
[1646386709310,0.2179208,41700.0,41699.0,0.25266943]
[1646386710414,0.18097535,41700.0,41699.0,0.25266943]
[1646386710613,0.28097535,41700.0,41699.0,0.25266943]
[1646386711256,0.26105455,41700.0,41699.0,0.25266943]
[1646386711859,0.198,41700.0,41699.0,0.25266943]
[1646386712359,0.098,41700.0,41699.0,0.25266943]
[1646386712560,0.048,41700.0,41699.0,0.25266943]
[1646386712760,0.33342712,41700.0,41699.0,0.25266943]
[1646386715198,0.34342712,41700.0,41699.0,0.25266943]
[1646386716500,0.058,41700.0,41699.0,0.25266943]
[1646386717702,0.30254252,41700.0,41699.0,0.25266943]
[1646386718355,0.48473896,41700.0,41699.0,0.25266943]
[1646386719658,0.48473896,41700.0,41688.0,0.182]
[1646386719863,0.06409635,41689.0,41682.0,0.02408]
[1646386720058,0.048,41688.0,41681.0,0.01]
[1646386720659,0.26754019,41684.0,41681.0,0.01]
[1646386721058,0.048,41683.0,41681.0,0.01]
[1646386721657,0.202829,41682.0,41681.0,0.01]
[1646386721857,0.317891,41682.0,41681.0,0.01]
[1646386722711,0.260891,41682.0,41681.0,0.01]
[1646386722913,0.193829,41682.0,41681.0,0.01]
[1646386723413,0.048,41682.0,41681.0,0.01]
[1646386724412,0.29176892,41682.0,41681.0,0.01]
[1646386724613,0.07198329,41682.0,41681.0,0.01]
[1646386725959,0.27470342,41682.0,41681.0,0.01]
[1646386726555,0.25072013,41682.0,41681.0,0.01]
[1646386728360,0.04786783,41682.0,41681.0,0.01]
[1646386733010,0.03786783,41682.0,41681.0,0.01]
[1646386734861,0.048,41687.0,41681.0,0.01]
[1646386735066,0.1923,41693.0,41681.0,0.01]
[1646386735067,0.1923,41693.0,41682.0,0.10927882]
[1646386735262,0.006,41688.0,41683.0,0.3077503]
[1646386735862,0.006,41688.0,41684.0,0.1724969]
[1646386736562,0.118,41695.0,41684.0,0.1724969]
[1646386737006,0.1878597,41693.0,41684.0,0.1724969]
[1646386737504,0.118,41695.0,41689.0,0.27208152]
[1646386737704,0.118,41695.0,41684.0,0.1724969]
[1646386738105,1.80474039,41693.0,41684.0,0.1724969]
[1646386738506,1.95986559,41693.0,41684.0,0.1724969]
[1646386738708,1.80474039,41693.0,41689.0,0.28079847]
[1646386738905,1.80474039,41693.0,41684.0,0.1724969]
[1646386739107,0.118,41695.0,41684.0,0.2465769]
[1646386739307,0.006,41699.0,41684.0,0.2465769]
[1646386739607,0.20968084,41697.0,41684.0,0.2465769]
[1646386739807,0.1278,41699.0,41684.0,0.2465769]
[1646386740007,0.1278,41699.0,41691.0,0.25725319]
[1646386740209,0.10707374,41698.0,41691.0,0.25725319]
[1646386740410,0.10707374,41698.0,41684.0,0.2465769]
[1646386741558,0.10707374,41698.0,41690.0,0.2712075]
[1646386741559,0.28038324,41695.0,41690.0,0.2712075]
[1646386741760,0.10707374,41698.0,41690.0,0.2712075]
[1646386742657,0.21346323,41696.0,41684.0,0.2224969]
[1646386742857,0.10707374,41698.0,41684.0,0.3724969]
[1646386743058,0.10707374,41698.0,41684.0,1.1045969]
[1646386743257,0.10707374,41698.0,41687.0,0.15]
[1646386743460,0.10707374,41698.0,41688.0,0.30648678]
[1646386743864,0.16652575,41696.0,41692.0,0.25919673]
[1646386744360,0.06303286,41697.0,41688.0,0.30648678]
[1646386744613,0.00078212,41697.0,41687.0,0.05]
[1646386744813,0.00078212,41697.0,41686.0,0.02408]
[1646386745213,0.00078212,41697.0,41690.0,0.2744782]
[1646386745214,0.17731578,41695.0,41690.0,0.2744782]
[1646386745416,0.17731578,41695.0,41685.0,0.35648678]
[1646386745615,0.06693605,41696.0,41685.0,0.35648678]
[1646386746420,0.00078212,41697.0,41692.0,0.22335525]
[1646386746616,0.20114591,41697.0,41692.0,0.22335525]
[1646386747015,0.00078212,41697.0,41692.0,0.22335525]
[1646386747719,0.00078212,41697.0,41685.0,0.35648678]
[1646386748118,0.00078212,41697.0,41689.0,0.16998312]
[1646386748359,0.00078212,41697.0,41689.0,0.05]
[1646386748560,0.00078212,41697.0,41686.0,0.15]
[1646386748561,0.00078212,41697.0,41687.0,0.05]
[1646386748761,0.00078212,41697.0,41690.0,0.23224713]
[1646386748964,0.00078212,41697.0,41690.0,0.28224713]
[1646386749161,0.00078212,41697.0,41690.0,0.23224713]
[1646386749361,0.00085861,41695.0,41690.0,0.23224713]
[1646386750162,0.00085861,41695.0,41690.0,0.28224713]
[1646386751065,0.00085861,41695.0,41685.0,0.58314273]
[1646386751265,0.00085861,41695.0,41685.0,0.05]
[1646386751664,0.00085861,41695.0,41683.0,0.07408]
[1646386751864,0.00085861,41695.0,41684.0,0.05]
[1646386752105,0.00085861,41695.0,41689.0,0.25558381]
[1646386754710,0.005,41697.0,41689.0,0.05]
[1646386754909,0.005,41697.0,41690.0,0.18414525]
[1646386755110,0.005,41697.0,41690.0,0.49063203]
[1646386755510,0.10707374,41698.0,41690.0,0.49063203]
[1646386755759,0.10707374,41698.0,41696.0,0.23971442]
[1646386755959,0.10707374,41698.0,41690.0,0.49063203]
[1646386757260,0.10707374,41698.0,41697.0,0.24518726]
[1646386757461,0.10707374,41698.0,41690.0,0.49063203]
[1646386757661,0.10707374,41698.0,41691.0,0.55964899]
[1646386757861,0.10707374,41698.0,41693.0,0.365313]
[1646386758061,0.10707374,41698.0,41694.0,0.30648678]
[1646386758262,0.10707374,41698.0,41695.0,0.048]
[1646386758464,0.10707374,41698.0,41697.0,0.4367313]
[1646386759708,0.10707374,41698.0,41697.0,1.10853108]
[1646386759909,0.10707374,41698.0,41697.0,1.13249538]
[1646386760910,0.10707374,41698.0,41697.0,1.18049538]
[1646386762511,0.10707374,41698.0,41697.0,0.81518238]
[1646386763010,0.10707374,41698.0,41697.0,1.15641538]
[1646386764561,0.10707374,41698.0,41697.0,0.79110238]
[1646386764758,0.10707374,41698.0,41697.0,1.15641538]
[1646386766659,0.10707374,41698.0,41697.0,0.98022047]
[1646386766863,0.10707374,41698.0,41697.0,0.67373369]
[1646386767511,0.10707374,41698.0,41697.0,0.26042069]
[1646386767714,0.10707374,41698.0,41694.0,0.003]
[1646386768511,0.17129995,41698.0,41694.0,0.003]
[1646386768713,0.17129995,41698.0,41685.0,0.31847678]
[1646386768714,0.28571751,41697.0,41685.0,0.31847678]
[1646386768922,0.28571751,41697.0,41685.0,0.30648678]
[1646386769515,0.28571751,41697.0,41687.0,0.21732758]
[1646386769715,0.10707374,41698.0,41687.0,0.21732758]
[1646386769914,0.10707374,41698.0,41688.0,0.30648678]
[1646386770114,0.15876162,41695.0,41688.0,0.30648678]
[1646386770314,0.10707374,41698.0,41687.0,0.46450814]
[1646386770514,0.10707374,41698.0,41688.0,0.30648678]
[1646386770765,0.10707374,41698.0,41690.0,0.22010128]
[1646386770766,0.20495754,41695.0,41690.0,0.22010128]
[1646386770967,0.10707374,41698.0,41690.0,0.05]
[1646386771369,0.10707374,41698.0,41689.0,0.003]
[1646386771566,0.10707374,41698.0,41689.0,0.18723635]
[1646386772168,0.10707374,41698.0,41694.0,0.3713696]
[1646386772566,0.10707374,41698.0,41694.0,0.16132478]
[1646386773667,0.39696427,41698.0,41694.0,0.16132478]
[1646386774268,0.10707374,41698.0,41694.0,0.16132478]
[1646386775711,0.10707374,41698.0,41689.0,0.18423635]
[1646386775909,0.10707374,41698.0,41688.0,0.41648278]
[1646386776912,0.10707374,41698.0,41692.0,0.17464678]
[1646386777110,0.10707374,41698.0,41694.0,0.365313]
[1646386777312,0.05,41697.0,41694.0,0.365313]
[1646386777917,0.10707374,41698.0,41696.0,0.365313]
[1646386778113,0.10707374,41698.0,41697.0,0.67179978]
[1646386778975,0.10707374,41698.0,41697.0,0.71979978]
[1646386780179,0.10707374,41698.0,41697.0,0.76979978]
[1646386780377,0.10707374,41698.0,41697.0,0.463313]
[1646386780777,0.10707374,41698.0,41697.0,0.65747321]
[1646386781477,0.10707374,41698.0,41697.0,0.91595999]
[1646386789263,0.01,41700.0,41698.0,2.1321]
[1646386789517,0.01,41700.0,41699.0,0.71933924]
[1646386789717,0.01,41700.0,41699.0,0.93403093]
[1646386790119,0.01,41700.0,41699.0,1.03403093]
[1646386790717,0.01,41700.0,41699.0,1.87165917]
[1646386791016,0.01,41700.0,41699.0,1.13955917]
[1646386791618,0.01,41700.0,41699.0,1.90613093]
[1646386791819,0.01,41700.0,41699.0,1.03403093]
[1646386792019,0.01,41700.0,41699.0,1.13954652]
[1646386792521,0.01,41700.0,41699.0,1.56562028]
[1646386793361,0.01,41700.0,41699.0,0.83352028]
[1646386793964,0.0127204,41700.0,41699.0,0.83352028]
[1646386794163,0.0127204,41700.0,41699.0,1.13954652]
[1646386794365,0.0127204,41700.0,41699.0,0.83352028]
[1646386794565,0.0127204,41700.0,41699.0,0.47082859]
[1646386795165,0.28487163,41709.0,41698.0,0.05]
[1646386795567,0.07141684,41709.0,41696.0,0.47249778]
[1646386795767,0.07141684,41709.0,41694.0,0.003]
[1646386795967,0.06053545,41701.0,41694.0,0.003]
[1646386796167,0.1571371,41698.0,41694.0,0.003]
[1646386796765,0.25639177,41695.0,41691.0,0.01199]
[1646386797227,1.4,41692.0,41686.0,0.30473792]
[1646386797430,1.4,41692.0,41682.0,0.10927882]
[1646386797431,0.0665308,41684.0,41682.0,0.10927882]
[1646386797628,0.35273792,41683.0,41682.0,0.10927882]
[1646386797827,0.61798657,41683.0,41682.0,0.10927882]
[1646386798025,0.61798657,41683.0,41682.0,0.10620931]
[1646386798226,1.4,41682.0,41681.0,0.01]
[1646386798428,1.4,41682.0,41667.0,0.55996856]
[1646386798429,0.048,41682.0,41668.0,0.09916569]
[1646386798627,0.048,41682.0,41669.0,0.365313]
[1646386799026,0.048,41682.0,41669.0,0.61152012]
[1646386799325,0.048,41682.0,41676.0,0.21152396]
[1646386799526,0.26524865,41683.0,41674.0,0.21939023]
[1646386799725,0.048,41687.0,41674.0,0.21939023]
[1646386800526,0.048,41687.0,41677.0,0.19462178]
[1646386800763,0.048,41687.0,41677.0,0.24462178]
[1646386801160,0.048,41687.0,41674.0,0.26939023]
[1646386801161,2.33264578,41684.0,41674.0,0.26939023]
[1646386801360,2.33264578,41684.0,41674.0,0.21939023]
[1646386801562,2.33264578,41684.0,41667.0,0.24620712]
[1646386801760,2.33264578,41684.0,41668.0,0.365313]
[1646386801961,2.33264578,41684.0,41669.0,0.060022]
[1646386802164,0.18492273,41677.0,41668.0,0.19570626]
[1646386802362,0.18492273,41677.0,41668.0,0.18220626]
[1646386802363,0.35037156,41676.0,41668.0,0.18220626]
[1646386802563,1.4,41668.0,41664.0,0.27110722]
[1646386802763,1.4,41664.0,41657.0,0.00120027]
[1646386802963,0.35037156,41663.0,41657.0,0.00120027]
[1646386803165,0.05711195,41661.0,41657.0,0.00120027]
[1646386803364,0.048,41660.0,41651.0,0.01]
[1646386803569,0.25420042,41655.0,41651.0,0.01]
[1646386804164,0.20205731,41654.0,41651.0,0.01]
[1646386804364,0.25420042,41655.0,41654.0,0.1474546]
[1646386804616,0.25420042,41655.0,41651.0,0.01]
[1646386804617,1.47353914,41654.0,41651.0,0.01]
[1646386804816,1.47353914,41654.0,41644.0,0.4097]
[1646386804817,0.15,41652.0,41644.0,0.4097]
[1646386805018,1.448,41653.0,41644.0,0.4097]
[1646386805019,0.06494965,41647.0,41644.0,0.4097]
[1646386805218,0.21475245,41647.0,41644.0,0.4097]
[1646386805416,0.048,41650.0,41644.0,0.4097]
[1646386805618,0.048,41650.0,41632.0,0.24620712]
[1646386805821,0.35037156,41650.0,41632.0,0.24620712]
[1646386806020,0.35029794,41650.0,41632.0,0.24620712]
[1646386806225,0.06274617,41635.0,41629.0,0.29544854]
[1646386806420,0.06274617,41635.0,41625.0,0.29544854]
[1646386806421,0.30237156,41634.0,41625.0,0.29544854]
[1646386806619,0.30237156,41634.0,41621.0,0.30544854]
[1646386806620,0.05421097,41628.0,41621.0,0.30544854]
[1646386806820,0.05421097,41628.0,41618.0,0.82552996]
[1646386806821,0.048,41631.0,41618.0,0.48084]
[1646386807018,0.048,41631.0,41618.0,0.38742727]
[1646386807219,0.30237156,41630.0,41613.0,0.45586938]
[1646386807421,0.048,41629.0,41613.0,0.20834618]
[1646386807619,0.148,41629.0,41613.0,0.18105934]
[1646386808019,0.148,41629.0,41614.0,0.365313]
[1646386808020,0.048,41629.0,41614.0,0.365313]
[1646386808266,0.048,41629.0,41615.0,0.7321]
[1646386808465,0.048,41629.0,41614.0,0.365313]
[1646386808466,0.28091625,41628.0,41623.0,0.2833607]
[1646386808665,0.048,41629.0,41615.0,0.365313]
[1646386808869,0.048,41629.0,41624.0,0.365313]
[1646386809068,0.048,41634.0,41623.0,0.30135846]
[1646386809268,0.048,41634.0,41622.0,0.2022539]
[1646386809669,0.26784155,41632.0,41622.0,0.2022539]
[1646386810068,0.19279214,41629.0,41622.0,0.2022539]
[1646386810268,0.19279214,41629.0,41613.0,0.1]
[1646386810468,0.26784155,41632.0,41614.0,0.365313]
[1646386810472,0.3,41631.0,41614.0,0.365313]
[1646386810668,0.26784155,41632.0,41613.0,0.15]
[1646386810869,0.26784155,41632.0,41621.0,0.27987406]
[1646386811269,0.048,41634.0,41624.0,0.17404911]
[1646386811478,0.048,41634.0,41625.0,0.15575864]
[1646386811669,0.048,41634.0,41626.0,0.365313]
[1646386812316,0.051,41638.0,41627.0,0.1]
[1646386812516,0.001,41638.0,41631.0,0.18606495]
[1646386812716,0.38027475,41642.0,41632.0,0.665313]
[1646386812915,0.38027475,41642.0,41631.0,0.18606495]
[1646386812916,0.22150962,41642.0,41628.0,0.176024]
[1646386813117,0.22150962,41642.0,41625.0,0.05]
[1646386813318,0.22150962,41642.0,41624.0,0.05]
[1646386813516,0.22150962,41642.0,41631.0,0.23527833]
[1646386813716,0.22150962,41642.0,41633.0,0.20003408]
[1646386813918,0.22150962,41642.0,41631.0,0.28527833]
[1646386814120,0.22150962,41642.0,41631.0,0.23527833]
[1646386814318,0.27150962,41642.0,41631.0,0.23527833]
[1646386814718,0.27150962,41642.0,41624.0,0.1762325]
[1646386814918,0.348,41641.0,41627.0,0.17865486]
[1646386815117,0.21233024,41640.0,41627.0,0.17865486]
[1646386815317,0.21233024,41640.0,41627.0,0.22865486]
[1646386815517,0.048,41641.0,41627.0,0.22865486]
[1646386815774,0.048,41641.0,41632.0,0.28095859]
[1646386816073,0.048,41641.0,41627.0,0.22865486]
[1646386816478,0.048,41641.0,41627.0,0.05]
[1646386816777,0.048,41641.0,41623.0,0.4994]
[1646386816975,0.048,41641.0,41627.0,0.22387954]
[1646386817176,0.048,41641.0,41627.0,0.27387954]
[1646386817578,0.048,41641.0,41629.0,0.16172801]
[1646386817777,0.048,41641.0,41629.0,0.21172801]
[1646386818579,0.048,41641.0,41635.0,0.19344012]
[1646386818878,0.463,41648.0,41635.0,0.24344012]
[1646386819077,0.05,41649.0,41635.0,0.24344012]
[1646386819280,0.3,41650.0,41637.0,0.25275473]
[1646386819281,0.23008145,41643.0,41637.0,0.25275473]
[1646386819514,0.18219361,41645.0,41637.0,0.25275473]
[1646386819715,0.3,41650.0,41637.0,0.25275473]
[1646386820314,0.3,41650.0,41636.0,0.17129587]
[1646386820315,0.4796301,41650.0,41636.0,0.17129587]
[1646386820714,0.3,41650.0,41636.0,0.17129587]
[1646386821328,0.28172273,41644.0,41638.0,0.22742057]
[1646386821519,0.3,41650.0,41638.0,0.22742057]
[1646386821824,0.3,41650.0,41641.0,0.21027174]
[1646386822018,0.152,41652.0,41641.0,0.21027174]
[1646386822618,0.21425117,41649.0,41641.0,0.21027174]
[1646386822821,0.21425117,41649.0,41639.0,0.048]
[1646386823020,0.16306991,41648.0,41639.0,0.048]
[1646386824066,0.21425117,41649.0,41639.0,0.048]
[1646386824265,0.28371108,41649.0,41639.0,0.048]
[1646386824766,0.21425117,41649.0,41639.0,0.048]
[1646386824966,0.20379734,41647.0,41639.0,0.048]
[1646386825265,0.21425117,41649.0,41639.0,0.25508352]
[1646386825665,0.21425117,41649.0,41639.0,0.04320001]
[1646386826466,0.002,41652.0,41639.0,0.04320001]
[1646386826668,0.002,41652.0,41646.0,0.21559136]
[1646386826869,0.002,41652.0,41647.0,0.413313]
[1646386827123,0.1628,41659.0,41651.0,0.14]
[1646386827124,0.1128,41659.0,41651.0,0.14]
[1646386827321,0.1128,41659.0,41652.0,0.048]
[1646386827522,0.002,41658.0,41653.0,0.28357773]
[1646386827719,0.002,41658.0,41654.0,0.048]
[1646386827920,0.002,41658.0,41655.0,0.048]
[1646386828522,0.25281532,41656.0,41655.0,0.048]
[1646386828920,0.24430139,41659.0,41655.0,0.048]
[1646386830767,0.1173,41666.0,41655.0,0.048]
[1646386830962,0.1173,41666.0,41658.0,0.14]
[1646386831160,0.01,41669.0,41660.0,0.365608]
[1646386831360,0.01,41669.0,41661.0,0.048]
[1646386831562,0.01,41669.0,41663.0,0.365608]
[1646386831760,0.01,41669.0,41664.0,0.048]
[1646386831961,0.01,41669.0,41666.0,0.26693019]
[1646386832163,0.01,41669.0,41667.0,0.413608]
[1646386832367,0.01,41669.0,41667.0,0.048]
[1646386832764,0.01,41669.0,41668.0,0.42320616]
[1646386833063,0.01,41669.0,41668.0,0.97618961]
[1646386833262,0.01,41669.0,41668.0,0.52119096]
[1646386833664,0.01,41669.0,41668.0,0.15558296]
[1646386833865,0.01,41669.0,41668.0,0.048]
[1646386834063,0.01,41669.0,41667.0,0.004]
[1646386835619,0.01,41669.0,41666.0,0.30606705]
[1646386836419,0.01,41669.0,41667.0,0.365608]
[1646386836620,0.01,41669.0,41668.0,0.21225677]
[1646386837021,0.01,41669.0,41668.0,0.57786477]
[1646386837222,0.01,41669.0,41668.0,0.56225677]
[1646386837419,0.01,41669.0,41668.0,0.92786477]
[1646386838120,0.01,41669.0,41668.0,0.715608]
[1646386838368,0.01,41669.0,41668.0,0.05]
[1646386838868,0.01,41669.0,41668.0,0.0020977]
[1646386840172,0.058,41669.0,41668.0,0.0020977]
[1646386844116,0.058,41669.0,41659.0,0.1692225]
[1646386844320,0.058,41669.0,41659.0,0.2192225]
[1646386844919,0.058,41669.0,41665.0,0.22812154]
[1646386845320,0.058,41669.0,41665.0,0.27812154]
[1646386845518,0.058,41669.0,41665.0,0.05]
[1646386845766,0.058,41669.0,41662.0,0.26854592]
[1646386846368,0.058,41669.0,41662.0,0.05]
[1646386846566,0.2569078,41666.0,41662.0,0.05]
[1646386846765,0.2569078,41666.0,41658.0,0.170071]
[1646386847369,0.2569078,41666.0,41660.0,0.1540411]
[1646386847568,0.2569078,41666.0,41660.0,0.36485743]
[1646386847766,0.2569078,41666.0,41658.0,0.36801669]
[1646386847767,0.2569078,41666.0,41658.0,0.05]
[1646386848166,0.2569078,41666.0,41655.0,0.004]
[1646386848766,0.2569078,41666.0,41657.0,0.28084493]
[1646386849166,0.2569078,41666.0,41657.0,0.33084493]
[1646386849369,0.2569078,41666.0,41657.0,0.39088793]
[1646386849625,0.058,41669.0,41660.0,0.21954156]
[1646386850224,0.058,41669.0,41660.0,0.26954156]
[1646386850628,0.23733589,41666.0,41660.0,0.26954156]
[1646386852026,0.058,41669.0,41660.0,0.26954156]
[1646386852426,0.058,41669.0,41662.0,0.060036]
[1646386852826,0.058,41669.0,41667.0,0.18718385]
[1646386853029,0.058,41669.0,41662.0,0.060036]
[1646386853030,0.01,41669.0,41662.0,0.060036]
[1646386853281,0.01,41669.0,41668.0,0.41058409]
[1646386853483,0.01,41669.0,41668.0,0.82619209]
[1646386854080,0.01,41669.0,41668.0,1.01602266]
[1646386854879,0.01,41669.0,41668.0,1.04010266]
[1646386855080,0.01,41669.0,41668.0,0.51114405]
[1646386855590,0.01,41669.0,41668.0,1.09672854]
[1646386855783,0.00120079,41675.0,41669.0,1.4]
[1646386855979,0.00120079,41675.0,41669.0,1.825619]
[1646386856181,0.00120079,41675.0,41670.0,0.02408]
[1646386856380,0.00120079,41675.0,41671.0,0.389574]
[1646386856580,0.00120079,41675.0,41672.0,0.32408]
[1646386856783,0.00120062,41676.0,41673.0,0.365494]
[1646386857211,0.00120062,41676.0,41673.0,0.415494]
[1646386857515,0.00120062,41676.0,41675.0,0.365494]
[1646386857711,0.00120062,41676.0,41675.0,0.665494]
[1646386857911,0.00120062,41676.0,41675.0,0.86922682]
[1646386858212,0.00120059,41677.0,41675.0,1.1228381]
[1646386858416,0.00120059,41677.0,41676.0,0.35]
[1646386858615,0.00120059,41677.0,41676.0,0.715494]
[1646386859617,0.00120056,41678.0,41676.0,0.715494]
[1646386859818,0.00120056,41678.0,41677.0,0.665494]